[Event "*** SCC Grand Prix: Titled Tuesday Blitz"]
[Site "Chess.com"]
[Date "2020.08.25"]
[Round "10"]
[White "Logman74"]
[Black "binbin239"]
[Result "0-1"]
[WhiteElo "2377"]
[BlackElo "2562"]
[TimeControl "180+1"]
[EndTime "11:59:22 PDT"]
[Termination "binbin239 won on time"]

1. e4 {[%clk 0:03:00.9]} 1... c5 {[%clk 0:02:59.5]} 2. Nf3 {[%clk 0:03:00]} 2...
Nc6 {[%clk 0:02:58.4]} 3. d4 {[%clk 0:02:59.3]} 3... cxd4 {[%clk 0:02:57.9]} 4.
Nxd4 {[%clk 0:02:59.8]} 4... g6 {[%clk 0:02:58.2]} 5. c4 {[%clk 0:02:59.5]} 5...
Nf6 {[%clk 0:02:56.4]} 6. Nc3 {[%clk 0:02:59.6]} 6... d6 {[%clk 0:02:56.7]} 7.
Be2 {[%clk 0:02:58.8]} 7... Nxd4 {[%clk 0:02:56.1]} 8. Qxd4 {[%clk 0:02:57.4]}
8... Bg7 {[%clk 0:02:56.6]} 9. O-O {[%clk 0:02:56.7]} 9... O-O {[%clk
0:02:56.6]} 10. Bg5 {[%clk 0:02:56.9]} 10... Be6 {[%clk 0:02:56.4]} 11. Qd3
{[%clk 0:02:54.7]} 11... Qa5 {[%clk 0:02:56.2]} 12. Bd2 {[%clk 0:02:52.5]} 12...
Rfc8 {[%clk 0:02:49.6]} 13. b3 {[%clk 0:02:51.9]} 13... a6 {[%clk 0:02:46.6]}
14. Rad1 {[%clk 0:02:40.6]} 14... Qd8 {[%clk 0:02:40.7]} 15. Nd5 {[%clk
0:02:37.4]} 15... Nxd5 {[%clk 0:02:32.6]} 16. exd5 {[%clk 0:02:34.5]} 16... Bf5
{[%clk 0:02:32.2]} 17. Qf3 {[%clk 0:02:32.2]} 17... b5 {[%clk 0:02:32]} 18. Rde1
{[%clk 0:02:22.7]} 18... bxc4 {[%clk 0:02:27.9]} 19. Bxc4 {[%clk 0:02:21.6]}
19... a5 {[%clk 0:02:27.3]} 20. a4 {[%clk 0:02:20.5]} 20... Qd7 {[%clk
0:02:20.6]} 21. Bg5 {[%clk 0:02:17.7]} 21... Bf8 {[%clk 0:02:06.4]} 22. Bb5
{[%clk 0:02:07.2]} 22... Qc7 {[%clk 0:02:03.1]} 23. Rc1 {[%clk 0:01:51.1]} 23...
Qb6 {[%clk 0:02:00.1]} 24. Rfe1 {[%clk 0:01:42.1]} 24... Qd4 {[%clk 0:01:55.4]}
25. h3 {[%clk 0:01:34.8]} 25... Rxc1 {[%clk 0:01:32.5]} 26. Rxc1 {[%clk
0:01:31.6]} 26... h6 {[%clk 0:01:32.4]} 27. Be3 {[%clk 0:01:23.4]} 27... Qb2
{[%clk 0:01:32]} 28. Bc4 {[%clk 0:01:11.7]} 28... Rc8 {[%clk 0:01:28.3]} 29. Qd1
{[%clk 0:01:08.3]} 29... Bg7 {[%clk 0:01:25.1]} 30. Bd2 {[%clk 0:01:02.1]} 30...
Bd4 {[%clk 0:01:21.6]} 31. Qe1 {[%clk 0:00:58.9]} 31... Kg7 {[%clk 0:01:15.3]}
32. g4 {[%clk 0:00:49.2]} 32... Bd7 {[%clk 0:01:10.5]} 33. Bc3 {[%clk
0:00:41.9]} 33... Bxc3 {[%clk 0:01:09.2]} 34. Rxc3 {[%clk 0:00:41.8]} 34... e6
{[%clk 0:01:03.5]} 35. Rf3 {[%clk 0:00:30.5]} 35... exd5 {[%clk 0:01:02]} 36.
Bf1 {[%clk 0:00:17.9]} 36... Rc1 {[%clk 0:00:59.2]} 37. Qe7 {[%clk 0:00:17.4]}
37... Be6 {[%clk 0:00:56.4]} 38. Qf6+ {[%clk 0:00:17.3]} 38... Qxf6 {[%clk
0:00:55.6]} 39. Rxf6 {[%clk 0:00:15.4]} 39... Kxf6 {[%clk 0:00:56.5]} 0-1

[Event "*** SCC Grand Prix: Titled Tuesday Blitz"]
[Site "Chess.com"]
[Date "2020.08.25"]
[Round "10"]
[White "maximnovik"]
[Black "Rodalquilar"]
[Result "0-1"]
[WhiteElo "2487"]
[BlackElo "2627"]
[TimeControl "180+1"]
[EndTime "11:59:27 PDT"]
[Termination "Rodalquilar won by resignation"]

1. d4 {[%clk 0:03:00.9]} 1... d5 {[%clk 0:03:00.2]} 2. c4 {[%clk 0:03:00.4]}
2... e6 {[%clk 0:03:00.7]} 3. Nc3 {[%clk 0:03:00]} 3... a6 {[%clk 0:03:01.3]} 4.
cxd5 {[%clk 0:02:59.5]} 4... exd5 {[%clk 0:03:02.2]} 5. Bf4 {[%clk 0:02:59.7]}
5... Nf6 {[%clk 0:03:02]} 6. e3 {[%clk 0:02:59.7]} 6... c5 {[%clk 0:03:02.5]} 7.
Nf3 {[%clk 0:02:58.6]} 7... c4 {[%clk 0:03:02.8]} 8. h3 {[%clk 0:02:46]} 8... b5
{[%clk 0:03:03.1]} 9. g4 {[%clk 0:02:45.6]} 9... Bb7 {[%clk 0:03:03.4]} 10. Bg2
{[%clk 0:02:45.5]} 10... Be7 {[%clk 0:03:03]} 11. Ne5 {[%clk 0:02:45.4]} 11...
O-O {[%clk 0:03:02.8]} 12. g5 {[%clk 0:02:38.4]} 12... Ne4 {[%clk 0:03:02.8]}
13. Nxe4 {[%clk 0:02:33]} 13... dxe4 {[%clk 0:03:03.3]} 14. Qg4 {[%clk
0:02:28.8]} 14... Qc8 {[%clk 0:02:40.5]} 15. Qg3 {[%clk 0:02:17.6]} 15... Bb4+
{[%clk 0:02:28.6]} 16. Kf1 {[%clk 0:02:17]} 16... Nd7 {[%clk 0:02:28.8]} 17. h4
{[%clk 0:02:13.1]} 17... c3 {[%clk 0:02:15.3]} 18. Bh3 {[%clk 0:01:50.9]} 18...
cxb2 {[%clk 0:02:12.5]} 19. Rd1 {[%clk 0:01:51.3]} 19... Qc2 {[%clk 0:02:10.4]}
20. Kg2 {[%clk 0:01:50.6]} 20... Nxe5 {[%clk 0:02:09]} 21. Bxe5 {[%clk
0:01:50.1]} 21... Rac8 {[%clk 0:01:58.9]} 22. Bxc8 {[%clk 0:01:49.1]} 22... Rxc8
{[%clk 0:01:59.2]} 23. Qg4 {[%clk 0:01:38.2]} 23... Bd5 {[%clk 0:01:41.3]} 24.
Qd7 {[%clk 0:00:40.5]} 24... Qc6 {[%clk 0:01:32.2]} 25. Qg4 {[%clk 0:00:33.5]}
25... Qe6 {[%clk 0:01:19.8]} 26. Qf4 {[%clk 0:00:30.8]} 26... Ba3 {[%clk
0:00:44.5]} 27. h5 {[%clk 0:00:20]} 27... Rc1 {[%clk 0:00:44.2]} 28. h6 {[%clk
0:00:13.8]} 28... b1=Q {[%clk 0:00:40.5]} 29. Bxg7 {[%clk 0:00:13.8]} 29... Bd6
{[%clk 0:00:34.9]} 30. Be5 {[%clk 0:00:12.5]} 30... Bxe5 {[%clk 0:00:26.6]} 31.
Rxc1 {[%clk 0:00:12]} 31... Bxf4 {[%clk 0:00:18.7]} 32. Rxb1 {[%clk 0:00:11.6]}
32... Qg4+ {[%clk 0:00:18.2]} 0-1

[Event "*** SCC Grand Prix: Titled Tuesday Blitz"]
[Site "Chess.com"]
[Date "2020.08.25"]
[Round "10"]
[White "Paladin61"]
[Black "FontVella8"]
[Result "1-0"]
[WhiteElo "2667"]
[BlackElo "2488"]
[TimeControl "180+1"]
[EndTime "11:59:27 PDT"]
[Termination "Paladin61 won by checkmate"]

1. b3 {[%clk 0:03:00.9]} 1... e5 {[%clk 0:02:59.1]} 2. Bb2 {[%clk 0:02:58.2]}
2... d6 {[%clk 0:02:59.6]} 3. e3 {[%clk 0:02:58.4]} 3... Nc6 {[%clk 0:02:59.7]}
4. Nf3 {[%clk 0:02:53.6]} 4... g6 {[%clk 0:02:59.9]} 5. d4 {[%clk 0:02:52.5]}
5... Bg4 {[%clk 0:02:48.3]} 6. h3 {[%clk 0:02:29.2]} 6... Bxf3 {[%clk
0:02:46.4]} 7. Qxf3 {[%clk 0:02:28.7]} 7... exd4 {[%clk 0:02:34.7]} 8. Bb5
{[%clk 0:02:27.3]} 8... Bg7 {[%clk 0:02:19.9]} 9. Bxc6+ {[%clk 0:02:25.1]} 9...
bxc6 {[%clk 0:02:20.8]} 10. Qxc6+ {[%clk 0:02:24]} 10... Kf8 {[%clk 0:02:20.1]}
11. exd4 {[%clk 0:02:07.7]} 11... Qe7+ {[%clk 0:02:11.5]} 12. Kf1 {[%clk
0:01:31.3]} 12... Re8 {[%clk 0:02:10.8]} 13. g3 {[%clk 0:01:30.6]} 13... Nh6
{[%clk 0:01:33.6]} 14. Kg2 {[%clk 0:01:20.2]} 14... Nf5 {[%clk 0:01:33.6]} 15.
c3 {[%clk 0:01:01.7]} 15... Qe2 {[%clk 0:01:24.4]} 16. Bc1 {[%clk 0:01:01.6]}
16... Nxd4 {[%clk 0:01:10.9]} 17. cxd4 {[%clk 0:00:41]} 17... Bxd4 {[%clk
0:01:10.9]} 18. Bh6+ {[%clk 0:00:41.1]} 18... Kg8 {[%clk 0:01:10.8]} 19. Rf1
{[%clk 0:00:33.2]} 19... Bxa1 {[%clk 0:01:05.4]} 20. Nc3 {[%clk 0:00:33.3]}
20... Bxc3 {[%clk 0:01:00.4]} 21. Qxc3 {[%clk 0:00:32.6]} 21... Qe4+ {[%clk
0:00:56]} 22. Kg1 {[%clk 0:00:32.5]} 22... Qe5 {[%clk 0:00:55.4]} 23. Qxc7
{[%clk 0:00:30.1]} 23... Qh5 {[%clk 0:00:47.8]} 24. Qc1 {[%clk 0:00:24.9]} 24...
Qxh3 {[%clk 0:00:38]} 25. Rd1 {[%clk 0:00:24.7]} 25... Rc8 {[%clk 0:00:31]} 26.
Qf4 {[%clk 0:00:22.3]} 26... f6 {[%clk 0:00:11.9]} 27. Qxd6 {[%clk 0:00:18]}
27... Qxh6 {[%clk 0:00:11.2]} 28. Qe6+ {[%clk 0:00:17.7]} 28... Kf8 {[%clk
0:00:10.9]} 29. Qxf6+ {[%clk 0:00:15.1]} 29... Ke8 {[%clk 0:00:10.5]} 30. Re1+
{[%clk 0:00:12.6]} 30... Kd7 {[%clk 0:00:10.7]} 31. Re7+ {[%clk 0:00:12]} 31...
Kd8 {[%clk 0:00:11.3]} 32. Qd6# {[%clk 0:00:11.6]} 1-0

[Event "*** SCC Grand Prix: Titled Tuesday Blitz"]
[Site "Chess.com"]
[Date "2020.08.25"]
[Round "10"]
[White "Grandmaster2B"]
[Black "monalize"]
[Result "1-0"]
[WhiteElo "2413"]
[BlackElo "2282"]
[TimeControl "180+1"]
[EndTime "11:59:27 PDT"]
[Termination "Grandmaster2B won by checkmate"]

1. e4 {[%clk 0:03:00.9]} 1... c5 {[%clk 0:02:58.3]} 2. Nf3 {[%clk 0:02:59.8]}
2... d6 {[%clk 0:02:58.3]} 3. d4 {[%clk 0:03:00.4]} 3... cxd4 {[%clk 0:02:58.5]}
4. Nxd4 {[%clk 0:03:01.3]} 4... Nf6 {[%clk 0:02:58.4]} 5. Nc3 {[%clk 0:03:00.3]}
5... a6 {[%clk 0:02:58.4]} 6. f3 {[%clk 0:03:00]} 6... e6 {[%clk 0:02:56.8]} 7.
Be3 {[%clk 0:02:58]} 7... h5 {[%clk 0:02:55.3]} 8. Qd2 {[%clk 0:02:54.9]} 8...
b5 {[%clk 0:02:55]} 9. O-O-O {[%clk 0:02:53.7]} 9... Bb7 {[%clk 0:02:53.6]} 10.
Kb1 {[%clk 0:02:45.3]} 10... Nbd7 {[%clk 0:02:52.9]} 11. Rg1 {[%clk 0:02:43.3]}
11... Be7 {[%clk 0:02:50]} 12. g3 {[%clk 0:02:36]} 12... Rc8 {[%clk 0:02:43.6]}
13. h3 {[%clk 0:02:35.8]} 13... b4 {[%clk 0:02:36.8]} 14. Nce2 {[%clk
0:02:35.1]} 14... d5 {[%clk 0:02:36.6]} 15. exd5 {[%clk 0:02:22.1]} 15... Nxd5
{[%clk 0:02:33.2]} 16. Nf4 {[%clk 0:02:22.1]} 16... Nxe3 {[%clk 0:02:19.8]} 17.
Qxe3 {[%clk 0:02:23]} 17... Qb6 {[%clk 0:02:09.4]} 18. Qd2 {[%clk 0:01:31.8]}
18... Ne5 {[%clk 0:01:59.8]} 19. Be2 {[%clk 0:01:22.4]} 19... Nc4 {[%clk
0:01:41.7]} 20. Bxc4 {[%clk 0:01:19.2]} 20... Rxc4 {[%clk 0:01:41.3]} 21. Nf5
{[%clk 0:01:08.7]} 21... exf5 {[%clk 0:01:32.3]} 22. Qd7+ {[%clk 0:01:08.5]}
22... Kf8 {[%clk 0:01:31.8]} 23. Rge1 {[%clk 0:01:09.4]} 23... Qc7 {[%clk
0:00:19.2]} 24. Rxe7 {[%clk 0:00:25.7]} 24... Qxd7 {[%clk 0:00:18.6]} 25. Rexd7
{[%clk 0:00:21.5]} 25... Bxf3 {[%clk 0:00:14.1]} 26. Rd8+ {[%clk 0:00:21.2]}
26... Ke7 {[%clk 0:00:14.4]} 27. R1d7+ {[%clk 0:00:14.7]} 27... Kf6 {[%clk
0:00:13.8]} 28. Rxh8 {[%clk 0:00:15.2]} 28... g5 {[%clk 0:00:13.4]} 29. Nxh5+
{[%clk 0:00:10.3]} 29... Ke6 {[%clk 0:00:13.5]} 30. Rd2 {[%clk 0:00:08.1]} 30...
Be4 {[%clk 0:00:12.8]} 31. Re8# {[%clk 0:00:06.9]} 1-0

[Event "*** SCC Grand Prix: Titled Tuesday Blitz"]
[Site "Chess.com"]
[Date "2020.08.25"]
[Round "10"]
[White "krasavetc"]
[Black "ShahMatKanal"]
[Result "0-1"]
[WhiteElo "2281"]
[BlackElo "2453"]
[TimeControl "180+1"]
[EndTime "11:59:27 PDT"]
[Termination "ShahMatKanal won by checkmate"]

1. e4 {[%clk 0:02:58.6]} 1... c5 {[%clk 0:02:59.1]} 2. c3 {[%clk 0:02:58.2]}
2... Nf6 {[%clk 0:02:57.5]} 3. Qc2 {[%clk 0:02:56.6]} 3... Nc6 {[%clk
0:02:55.7]} 4. Nf3 {[%clk 0:02:56.2]} 4... e5 {[%clk 0:02:52.5]} 5. Bb5 {[%clk
0:02:54.4]} 5... d6 {[%clk 0:02:51.8]} 6. d4 {[%clk 0:02:51.3]} 6... Bd7 {[%clk
0:02:39.7]} 7. Bg5 {[%clk 0:02:39.2]} 7... cxd4 {[%clk 0:02:33.6]} 8. cxd4
{[%clk 0:02:32.1]} 8... Qa5+ {[%clk 0:02:17.1]} 9. Nc3 {[%clk 0:02:18.9]} 9...
Nxd4 {[%clk 0:02:15.3]} 10. Qd3 {[%clk 0:01:53.8]} 10... Bxb5 {[%clk 0:02:09]}
11. Qd2 {[%clk 0:01:27.8]} 11... Nxf3+ {[%clk 0:01:50.3]} 12. gxf3 {[%clk
0:01:17.9]} 12... Be7 {[%clk 0:01:47.4]} 13. b4 {[%clk 0:01:06.1]} 13... Qb6
{[%clk 0:01:29.4]} 14. Rg1 {[%clk 0:00:52.3]} 14... Bc4 {[%clk 0:01:21.9]} 15.
Be3 {[%clk 0:00:41.6]} 15... Qd8 {[%clk 0:00:59.2]} 16. Rxg7 {[%clk 0:00:39.9]}
16... Rg8 {[%clk 0:00:56.6]} 17. Rxg8+ {[%clk 0:00:35.8]} 17... Nxg8 {[%clk
0:00:57.5]} 18. Nd5 {[%clk 0:00:31.5]} 18... Bxd5 {[%clk 0:00:54.8]} 19. Qxd5
{[%clk 0:00:29.3]} 19... Qd7 {[%clk 0:00:42.5]} 20. Rd1 {[%clk 0:00:26]} 20...
Nf6 {[%clk 0:00:41.4]} 21. Qb3 {[%clk 0:00:23.4]} 21... a5 {[%clk 0:00:37.9]}
22. b5 {[%clk 0:00:20.3]} 22... a4 {[%clk 0:00:38.2]} 23. Qc4 {[%clk 0:00:18]}
23... Qh3 {[%clk 0:00:30.9]} 24. Ke2 {[%clk 0:00:16.8]} 24... Rc8 {[%clk
0:00:27]} 25. Qxa4 {[%clk 0:00:15]} 25... Nh5 {[%clk 0:00:26]} 26. b6+ {[%clk
0:00:14.1]} 26... Kf8 {[%clk 0:00:26.2]} 27. Rd2 {[%clk 0:00:12]} 27... Rc1
{[%clk 0:00:20.6]} 28. Rxd6 {[%clk 0:00:10.4]} 28... Qf1+ {[%clk 0:00:15.9]} 29.
Kd2 {[%clk 0:00:10.6]} 29... Qe1+ {[%clk 0:00:13.7]} 30. Kd3 {[%clk 0:00:10.9]}
30... Rc3# {[%clk 0:00:11]} 0-1

[Event "*** SCC Grand Prix: Titled Tuesday Blitz"]
[Site "Chess.com"]
[Date "2020.08.25"]
[Round "10"]
[White "AlexTriapishko"]
[Black "A-Fier"]
[Result "1-0"]
[WhiteElo "2730"]
[BlackElo "2756"]
[TimeControl "180+1"]
[EndTime "11:59:29 PDT"]
[Termination "AlexTriapishko won by resignation"]

1. Nf3 {[%clk 0:03:00.9]} 1... Nf6 {[%clk 0:02:59.7]} 2. g3 {[%clk 0:03:00.9]}
2... c5 {[%clk 0:02:59.7]} 3. Bg2 {[%clk 0:02:59.9]} 3... Nc6 {[%clk 0:03:00.2]}
4. d4 {[%clk 0:02:58.3]} 4... cxd4 {[%clk 0:02:59.9]} 5. Nxd4 {[%clk 0:02:59.2]}
5... g6 {[%clk 0:03:00.3]} 6. b3 {[%clk 0:02:53.1]} 6... Bg7 {[%clk 0:03:00.3]}
7. Bb2 {[%clk 0:02:53.4]} 7... O-O {[%clk 0:03:00.6]} 8. O-O {[%clk 0:02:51.7]}
8... d5 {[%clk 0:03:01]} 9. c4 {[%clk 0:02:48.8]} 9... dxc4 {[%clk 0:02:56.3]}
10. bxc4 {[%clk 0:02:46.8]} 10... Qb6 {[%clk 0:02:52.9]} 11. Nb3 {[%clk
0:02:41.8]} 11... Be6 {[%clk 0:02:48.8]} 12. N1d2 {[%clk 0:02:31.5]} 12... Rfd8
{[%clk 0:02:48]} 13. Qc2 {[%clk 0:02:17.6]} 13... Rac8 {[%clk 0:02:47.8]} 14.
Rac1 {[%clk 0:02:11]} 14... Nb4 {[%clk 0:02:45.5]} 15. Qb1 {[%clk 0:02:11.2]}
15... Qa6 {[%clk 0:02:44.8]} 16. a3 {[%clk 0:02:04.3]} 16... Nc6 {[%clk
0:02:44.9]} 17. Nc5 {[%clk 0:01:40.1]} 17... Qb6 {[%clk 0:02:45.3]} 18. Nxe6
{[%clk 0:01:39.2]} 18... Rxd2 {[%clk 0:02:45.7]} 19. Bc3 {[%clk 0:01:09.9]}
19... Qxb1 {[%clk 0:02:45.7]} 20. Rxb1 {[%clk 0:01:10.3]} 20... Rd7 {[%clk
0:02:46.3]} 21. Nxg7 {[%clk 0:01:03.1]} 21... Kxg7 {[%clk 0:02:46]} 22. Bh3
{[%clk 0:01:02.1]} 22... e6 {[%clk 0:02:44.3]} 23. e3 {[%clk 0:00:48.7]} 23...
Nd8 {[%clk 0:02:16.5]} 24. Rfc1 {[%clk 0:00:43.6]} 24... g5 {[%clk 0:02:11.6]}
25. Bf1 {[%clk 0:00:31.8]} 25... Kg6 {[%clk 0:02:11.4]} 26. Rd1 {[%clk
0:00:27.9]} 26... Rxd1 {[%clk 0:02:10]} 27. Rxd1 {[%clk 0:00:28.5]} 27... Nc6
{[%clk 0:02:10.3]} 28. Bd3+ {[%clk 0:00:27.2]} 28... Kg7 {[%clk 0:02:10.6]} 29.
f4 {[%clk 0:00:27.3]} 29... h6 {[%clk 0:02:09.3]} 30. Rf1 {[%clk 0:00:23.6]}
30... Rd8 {[%clk 0:02:02.9]} 31. Bc2 {[%clk 0:00:22.9]} 31... e5 {[%clk
0:01:45.6]} 32. fxe5 {[%clk 0:00:15.7]} 32... Ng4 {[%clk 0:01:46.2]} 33. e6+
{[%clk 0:00:16.4]} 33... f6 {[%clk 0:01:46.9]} 34. Be4 {[%clk 0:00:16.9]} 34...
Re8 {[%clk 0:01:43.4]} 35. Bd5 {[%clk 0:00:11.5]} 35... Nce5 {[%clk 0:01:41.4]}
36. Bd4 {[%clk 0:00:09.2]} 36... b6 {[%clk 0:01:40.9]} 37. h3 {[%clk 0:00:09.2]}
37... Kg6 {[%clk 0:01:26.5]} 38. hxg4 {[%clk 0:00:09]} 38... Nxg4 {[%clk
0:01:27.4]} 39. Be4+ {[%clk 0:00:09.3]} 39... Kh5 {[%clk 0:01:26.6]} 40. Bd5
{[%clk 0:00:04.5]} 40... Kg6 {[%clk 0:01:25.5]} 41. Kg2 {[%clk 0:00:05]} 41...
f5 {[%clk 0:01:25.8]} 42. e4 {[%clk 0:00:04.8]} 42... f4 {[%clk 0:00:59.9]} 43.
gxf4 {[%clk 0:00:04.7]} 43... gxf4 {[%clk 0:01:00.8]} 44. Rxf4 {[%clk
0:00:05.4]} 44... Kg5 {[%clk 0:01:01.7]} 45. Rf5+ {[%clk 0:00:05.8]} 45... Kh4
{[%clk 0:01:02.6]} 46. Bf2+ {[%clk 0:00:04.8]} 46... Nxf2 {[%clk 0:01:02.9]} 47.
Kxf2 {[%clk 0:00:05.7]} 1-0

[Event "*** SCC Grand Prix: Titled Tuesday Blitz"]
[Site "Chess.com"]
[Date "2020.08.25"]
[Round "10"]
[White "Kobalia"]
[Black "Jungle_Jaguar"]
[Result "0-1"]
[WhiteElo "2754"]
[BlackElo "2650"]
[TimeControl "180+1"]
[EndTime "11:59:29 PDT"]
[Termination "Jungle_Jaguar won by checkmate"]

1. e4 {[%clk 0:03:00.9]} 1... e5 {[%clk 0:03:00.1]} 2. Nf3 {[%clk 0:03:00.5]}
2... Nc6 {[%clk 0:03:00.5]} 3. Bb5 {[%clk 0:03:00.2]} 3... a6 {[%clk 0:03:00.7]}
4. Ba4 {[%clk 0:03:00.4]} 4... Nf6 {[%clk 0:03:01.1]} 5. O-O {[%clk 0:03:00.2]}
5... Be7 {[%clk 0:03:01.7]} 6. d3 {[%clk 0:03:00]} 6... b5 {[%clk 0:03:00.5]} 7.
Bb3 {[%clk 0:03:00]} 7... d6 {[%clk 0:03:01.3]} 8. a3 {[%clk 0:02:59.5]} 8...
Na5 {[%clk 0:02:55.4]} 9. Ba2 {[%clk 0:02:59]} 9... Be6 {[%clk 0:02:56]} 10.
Bxe6 {[%clk 0:02:53.4]} 10... fxe6 {[%clk 0:02:56]} 11. Re1 {[%clk 0:02:16.6]}
11... O-O {[%clk 0:02:48.6]} 12. b4 {[%clk 0:02:16]} 12... Nc6 {[%clk
0:02:46.5]} 13. c4 {[%clk 0:02:16.2]} 13... Nd4 {[%clk 0:02:40.6]} 14. Nxd4
{[%clk 0:02:13.5]} 14... exd4 {[%clk 0:02:40.7]} 15. Nd2 {[%clk 0:02:13.4]}
15... e5 {[%clk 0:02:22.8]} 16. Qb3 {[%clk 0:02:12.6]} 16... Kh8 {[%clk
0:02:20.7]} 17. Nf3 {[%clk 0:02:12.7]} 17... Qd7 {[%clk 0:02:16.8]} 18. Bd2
{[%clk 0:02:11.4]} 18... Nh5 {[%clk 0:02:12.6]} 19. a4 {[%clk 0:02:03.3]} 19...
Rxf3 {[%clk 0:01:46.6]} 20. gxf3 {[%clk 0:02:02.7]} 20... bxc4 {[%clk 0:01:47]}
21. dxc4 {[%clk 0:01:59.6]} 21... Qh3 {[%clk 0:01:47.2]} 22. b5 {[%clk
0:01:55.6]} 22... a5 {[%clk 0:01:30.7]} 23. Qd3 {[%clk 0:01:46.5]} 23... Rf8
{[%clk 0:01:27.4]} 24. Ra3 {[%clk 0:01:41.7]} 24... Nf4 {[%clk 0:00:56.8]} 25.
Qf1 {[%clk 0:01:34.6]} 25... Qh5 {[%clk 0:00:54.9]} 26. Rb3 {[%clk 0:01:16.2]}
26... Bg5 {[%clk 0:00:45.6]} 27. Kh1 {[%clk 0:01:06.6]} 27... Rf6 {[%clk
0:00:43.8]} 28. Qg1 {[%clk 0:01:03.9]} 28... Nh3 {[%clk 0:00:41]} 29. Bxg5
{[%clk 0:00:55.1]} 29... Nxg1 {[%clk 0:00:40.4]} 30. Rxg1 {[%clk 0:00:50.7]}
30... Rxf3 {[%clk 0:00:39.3]} 31. Rb2 {[%clk 0:00:43]} 31... h6 {[%clk
0:00:32.3]} 32. Bd8 {[%clk 0:00:40.2]} 32... Rh3 {[%clk 0:00:32.2]} 33. f4
{[%clk 0:00:35]} 33... Qf3+ {[%clk 0:00:30.8]} 34. Rbg2 {[%clk 0:00:34.5]} 34...
d3 {[%clk 0:00:29.9]} 35. Bxc7 {[%clk 0:00:16.3]} 35... d2 {[%clk 0:00:30]} 36.
b6 {[%clk 0:00:16.6]} 36... d1=Q {[%clk 0:00:29.8]} 37. b7 {[%clk 0:00:17.2]}
37... Qxg1+ {[%clk 0:00:28.1]} 38. Kxg1 {[%clk 0:00:16.3]} 38... Qd1+ {[%clk
0:00:29]} 39. Kf2 {[%clk 0:00:16.3]} 39... Rf3# {[%clk 0:00:29.9]} 0-1

[Event "*** SCC Grand Prix: Titled Tuesday Blitz"]
[Site "Chess.com"]
[Date "2020.08.25"]
[Round "10"]
[White "labdalla"]
[Black "TST2014"]
[Result "0-1"]
[WhiteElo "2277"]
[BlackElo "2504"]
[TimeControl "180+1"]
[EndTime "11:59:33 PDT"]
[Termination "TST2014 won by resignation"]

1. d4 {[%clk 0:03:00.9]} 1... Nf6 {[%clk 0:02:59.2]} 2. c4 {[%clk 0:02:59.7]}
2... c5 {[%clk 0:02:57.2]} 3. d5 {[%clk 0:02:59.3]} 3... b5 {[%clk 0:02:57.5]}
4. cxb5 {[%clk 0:03:00.2]} 4... a6 {[%clk 0:02:57.8]} 5. bxa6 {[%clk 0:03:01.1]}
5... Bxa6 {[%clk 0:02:58.3]} 6. Nc3 {[%clk 0:03:01.6]} 6... g6 {[%clk
0:02:57.6]} 7. e4 {[%clk 0:03:01.9]} 7... Bxf1 {[%clk 0:02:57.5]} 8. Kxf1 {[%clk
0:03:02]} 8... d6 {[%clk 0:02:57.6]} 9. g3 {[%clk 0:03:02.5]} 9... Bg7 {[%clk
0:02:56]} 10. Kg2 {[%clk 0:03:03.1]} 10... O-O {[%clk 0:02:56]} 11. Nf3 {[%clk
0:03:03.7]} 11... Nbd7 {[%clk 0:02:56.5]} 12. a4 {[%clk 0:03:02.7]} 12... Qa5
{[%clk 0:02:56.2]} 13. Qc2 {[%clk 0:03:01.3]} 13... Rfb8 {[%clk 0:02:55.2]} 14.
Ra3 {[%clk 0:02:54]} 14... Ne8 {[%clk 0:02:49.4]} 15. Rf1 {[%clk 0:02:39.7]}
15... Nc7 {[%clk 0:02:48]} 16. Re1 {[%clk 0:02:34.3]} 16... Nb6 {[%clk
0:02:46.8]} 17. Nd2 {[%clk 0:02:17.1]} 17... Qb4 {[%clk 0:02:37.4]} 18. Rb3
{[%clk 0:02:00.3]} 18... Qa5 {[%clk 0:02:36.2]} 19. Ra3 {[%clk 0:01:54.2]} 19...
Bxc3 {[%clk 0:02:19.5]} 20. bxc3 {[%clk 0:01:48.2]} 20... Nxa4 {[%clk
0:02:17.6]} 21. c4 {[%clk 0:01:27.3]} 21... Rb4 {[%clk 0:02:06.5]} 22. e5 {[%clk
0:01:23.3]} 22... Qb6 {[%clk 0:01:55.5]} 23. exd6 {[%clk 0:01:21.4]} 23... exd6
{[%clk 0:01:51.8]} 24. Ne4 {[%clk 0:01:15.1]} 24... Ne8 {[%clk 0:01:34.5]} 25.
Rae3 {[%clk 0:01:07.5]} 25... Qa6 {[%clk 0:01:26.4]} 26. Ng5 {[%clk 0:01:04.9]}
26... Nf6 {[%clk 0:01:13.3]} 27. Qe2 {[%clk 0:00:34.2]} 27... Qxc4 {[%clk
0:01:07.4]} 28. Qf3 {[%clk 0:00:34.1]} 28... Qxd5 {[%clk 0:01:06.2]} 29. Re8+
{[%clk 0:00:23.2]} 29... Rxe8 {[%clk 0:01:00.4]} 30. Rxe8+ {[%clk 0:00:24.1]}
30... Kg7 {[%clk 0:01:00.7]} 31. Re7 {[%clk 0:00:06.1]} 31... Qxf3+ {[%clk
0:00:44.3]} 32. Kxf3 {[%clk 0:00:07]} 32... h6 {[%clk 0:00:32.5]} 33. Nxf7
{[%clk 0:00:03.7]} 33... Nd5 {[%clk 0:00:27.5]} 34. Rb7 {[%clk 0:00:02.9]} 34...
Rxb7 {[%clk 0:00:26.4]} 0-1